fUSD/lending_fUSD_20240608
["ID","MTS","AMOUNT","RATE_DAILY","PERIOD"]
[328855899,1717890668150,-500.0,0.00029863,4]
[328855900,1717890668160,-500.0,0.00029863,4]
[328855901,1717890668169,-500.0,0.00029863,4]
[328855902,1717890668180,-506.8724122,0.00029863,4]
[328855903,1717890668189,-500.0,0.00029863,4]
[328855904,1717890668199,-504.93460646,0.00029863,4]
[328855905,1717890668208,-500.0,0.00029863,4]
[328855906,1717890668218,-500.0,0.00029863,4]
[328855907,1717890668227,-500.0,0.00029863,4]
[328855908,1717890668237,-500.0,0.00029863,4]
[328855909,1717890668247,-507.42818372,0.00029863,4]
[328855910,1717890668257,-500.0,0.00029863,4]
[328855911,1717890668267,-500.0,0.00029863,4]
[328855912,1717890668277,-513.99760453,0.00029863,4]
[328855913,1717890668286,-331.17717328,0.00029863,4]
[328855914,1717890668296,-500.0,0.00029863,4]
[328855915,1717890668306,-500.0,0.00029863,4]
[328855916,1717890668316,-500.0,0.00029863,4]
[328855917,1717890668326,-500.0,0.00029863,4]
[328855918,1717890668335,-500.0,0.00029863,4]
[328855919,1717890668345,-500.0,0.00029863,4]
[328855920,1717890668355,-500.0,0.00029863,4]
[328855921,1717890668365,-500.0,0.00029863,4]
[328855922,1717890668374,-500.0,0.00029863,4]
[328855923,1717890668384,-500.0,0.00029863,4]
[328855924,1717890668394,-500.0,0.00029863,4]
[328855925,1717890668403,-541.24,0.00029863,4]
[328855926,1717890668412,-500.0,0.00029863,4]
[328855927,1717890668423,-500.0,0.00029863,4]
[328855928,1717890668433,-394.83,0.00029863,4]
[328855929,1717890668443,-500.0,0.00029863,4]
[328855930,1717890668452,-500.0,0.00029863,4]
[328855931,1717890668462,-151.0,0.00029863,7]
[328855932,1717890668472,-500.0,0.00029863,4]
[328855933,1717890668482,-151.0,0.00029863,7]
[328855934,1717890668492,-500.0,0.00029863,4]
[328855935,1717890668502,-151.0,0.00029863,7]
[328855936,1717890668512,-584.13,0.00029863,4]
[328855937,1717890668522,-500.0,0.00029863,4]
[328855938,1717890668533,-500.0,0.00029863,4]
[328855939,1717890668544,-500.0,0.00029863,4]
[328855940,1717890668558,-459.8248964,0.00029863,4]
[328855941,1717890668568,-500.0,0.00029863,4]
[328855942,1717890668579,-261.24,0.00029863,4]
[328855943,1717890668590,-500.0,0.00029863,4]
[328855944,1717890668600,-500.0,0.00029863,4]
[328855945,1717890668610,-226.10475714,0.00029863,4]
[328855946,1717890668621,-563.77286689,0.00029863,4]
[328855947,1717890668632,-505.48760534,0.00029863,4]
[328855948,1717890668642,-505.26480633,0.00029863,4]
[328855949,1717890668652,-500.0,0.00029863,4]
[328855950,1717890668662,-500.0,0.00029863,4]
[328855951,1717890668672,-500.0,0.00029863,4]
[328855952,1717890668682,-500.0,0.00029863,4]
[328855953,1717890668693,-500.0,0.00029863,4]
[328855954,1717890668703,-504.53737556,0.00029863,4]
[328855955,1717890668713,-284.71,0.00029863,4]
[328855956,1717890668723,-500.0,0.00029863,4]
[328855957,1717890668733,-504.97427837,0.00029863,4]
[328855958,1717890668743,-500.0,0.00029863,4]
[328855959,1717890668753,-500.0,0.00029863,4]
[328855960,1717890668762,-500.0,0.00029863,4]
[328855961,1717890668773,-500.0,0.00029863,4]
[328855962,1717890668783,-500.0,0.00029863,4]
[328855963,1717890668793,-500.0,0.00029863,4]
[328855964,1717890668804,-500.0,0.00029863,4]
[328855965,1717890668813,-500.0,0.00029863,4]
[328855966,1717890668824,-500.0,0.00029863,4]
[328855967,1717890668834,-500.0,0.00029863,4]
[328855968,1717890668845,-500.0,0.00029863,4]
[328855969,1717890668855,-500.0,0.00029863,4]
[328855970,1717890668865,-500.0,0.00029863,4]
[328855971,1717890668875,-500.0,0.00029863,4]
[328855972,1717890668886,-500.0,0.00029863,4]
[328855973,1717890668896,-500.0,0.00029863,4]
[328855974,1717890668906,-500.0,0.00029863,4]
[328855975,1717890668916,-500.0,0.00029863,4]
[328855976,1717890668926,-504.59345456,0.00029863,4]
[328855977,1717890668936,-500.0,0.00029863,4]
[328855978,1717890668946,-500.0,0.00029863,4]
[328855979,1717890668956,-332.55,0.00029863,4]
[328855980,1717890668966,-500.0,0.00029863,4]
[328855981,1717890668976,-267.24,0.00029863,4]
[328855982,1717890668986,-500.0,0.00029863,4]
[328855983,1717890668996,-250.01475985,0.00029863,4]
[328855984,1717890669006,-506.18826042,0.00029863,4]
[328855985,1717890669016,-500.0,0.00029863,4]
[328855986,1717890669026,-500.0,0.00029863,4]
[328855987,1717890669036,-221.93,0.00029863,4]
[328855988,1717890669047,-504.06463945,0.00029863,4]
[328855989,1717890669056,-500.0,0.00029863,4]
[328855990,1717890669067,-503.0827301,0.00029863,4]
[328855991,1717890669076,-500.0,0.00029863,4]
[328855992,1717890669086,-500.0,0.00029863,2]
[328855993,1717890669096,-500.0,0.00029863,2]
[328855994,1717890669106,-500.0,0.00029863,2]
[328855995,1717890669116,-500.0,0.00029863,2]
[328855996,1717890669126,-383.81718748,0.00029863,4]
[328855997,1717890669136,-500.0,0.00029863,2]
[328855998,1717890669145,-500.0,0.00029863,4]
[328855999,1717890669155,-500.0,0.00029863,4]
[328856000,1717890669165,-500.0,0.00029863,2]
[328856001,1717890669178,-500.0,0.00029863,2]
[328856002,1717890669188,-500.0,0.00029863,2]
[328856003,1717890669198,-500.0,0.00029863,2]
[328856004,1717890669208,-500.0,0.00029863,2]
[328856005,1717890669218,-252.71,0.00029863,2]
[328856006,1717890669229,-500.0,0.00029863,4]
[328856007,1717890669239,-500.0,0.00029863,4]
[328856008,1717890669249,-500.0,0.00029863,4]
[328856009,1717890669259,-500.0,0.00029863,4]
[328856010,1717890669269,-579.96,0.00029863,4]
[328856011,1717890669279,-518.47847176,0.00029863,4]
[328856012,1717890669289,-500.0,0.00029863,4]
[328856013,1717890669299,-500.0,0.00029863,4]
[328856014,1717890669309,-508.62,0.00029863,4]
[328856015,1717890669319,-497.4975,0.00029863,4]
[328856016,1717890669328,-504.46575648,0.00029863,4]
[328856017,1717890669338,-151.12051422,0.00029863,4]
[328856018,1717890669348,-500.0,0.00029863,4]
[328856019,1717890669357,-500.0,0.00029863,4]
[328856020,1717890669367,-500.0,0.00029863,4]
[328856021,1717890669377,-500.0,0.00029863,4]
[328856022,1717890669387,-500.0,0.00029863,4]
[328856023,1717890669396,-500.0,0.00029863,4]
[328856024,1717890669406,-459.05,0.00029863,4]
[328856025,1717890669416,-480.74919822,0.00029863,4]
[328856026,1717890669427,-500.0,0.00029863,4]
[328856027,1717890669437,-530.15,0.00029863,4]
[328856028,1717890669446,-506.13929529,0.00029863,4]
[328856029,1717890669456,-500.0,0.00029863,4]
[328856030,1717890669466,-500.0,0.00029863,4]
[328856031,1717890669476,-504.23232886,0.00029863,4]
[328856032,1717890669486,-500.0,0.00029863,4]
[328856033,1717890669496,-500.0,0.00029863,4]
[328856034,1717890669507,-500.0,0.00029863,4]
[328856035,1717890669517,-500.0,0.00029863,4]
[328856036,1717890669527,-500.0,0.00029863,4]
[328856037,1717890669537,-645.77,0.00029863,4]
[328856038,1717890669550,-343.82,0.00029863,4]
[328856039,1717890669560,-500.0,0.00029863,4]
[328856040,1717890669570,-500.0,0.00029863,4]
[328856041,1717890669580,-504.4008119,0.00029863,4]
[328856042,1717890669591,-525.42349272,0.00029863,4]
[328856043,1717890669601,-500.0,0.00029863,4]
[328856044,1717890669612,-500.0,0.00029863,4]
[328856045,1717890669623,-500.0,0.00029863,4]
[328856046,1717890669634,-500.0,0.00029863,4]
[328856047,1717890669644,-500.0,0.00029863,4]
[328856048,1717890669655,-500.0,0.00029863,4]
[328856049,1717890669666,-500.0,0.00029863,4]
[328856050,1717890669676,-495.39,0.00029863,4]
[328856051,1717890669686,-500.0,0.00029863,4]
[328856052,1717890669696,-500.0,0.00029863,4]
[328856053,1717890669706,-218.23,0.00029863,4]
[328856054,1717890669716,-500.0,0.00029863,4]
[328856055,1717890669726,-500.0,0.00029863,4]
[328856056,1717890669736,-500.0,0.00029863,4]
[328856057,1717890669746,-500.0,0.00029863,4]
[328856058,1717890669756,-641.45,0.00029863,4]
[328856059,1717890669766,-500.0,0.00029863,4]
[328856060,1717890669777,-229.37424816,0.00029863,4]
[328856061,1717890669787,-606.9,0.00029863,4]
[328856062,1717890669797,-500.0,0.00029863,4]
[328856063,1717890669807,-500.0,0.00029863,4]
[328856064,1717890669816,-500.0,0.00029863,4]
[328856065,1717890669826,-500.0,0.00029863,4]
[328856066,1717890669837,-350.05,0.00029863,4]
[328856067,1717890669846,-500.0,0.00029863,4]
[328856068,1717890669856,-500.0,0.00029863,4]
[328856069,1717890669865,-500.0,0.00029863,4]
[328856070,1717890669875,-505.43999071,0.00029863,4]
[328856071,1717890669886,-500.0,0.00029863,4]
[328856072,1717890669896,-505.53427678,0.00029863,4]
[328856073,1717890669906,-515.18467512,0.00029863,4]
[328856074,1717890669916,-500.0,0.00029863,4]
[328856075,1717890670029,-500.0,0.00029863,4]
[328856076,1717890670040,-500.0,0.00029863,4]
[328856077,1717890670050,-503.31082978,0.00029863,4]
[328856078,1717890670060,-505.98585131,0.00029863,4]
[328856079,1717890670069,-500.0,0.00029863,4]
[328856080,1717890670079,-500.0,0.00029863,4]
[328856081,1717890670090,-500.0,0.00029863,4]
[328856082,1717890670100,-519.14,0.00029863,4]
[328856083,1717890670110,-500.0,0.00029863,4]
[328856084,1717890670120,-510.48423437,0.00029863,4]
[328856085,1717890670131,-500.0,0.00029863,4]
[328856086,1717890670140,-400.51,0.00029863,4]
[328856087,1717890670150,-622.02,0.00029863,4]
[328856088,1717890670160,-500.0,0.00029863,4]
[328856089,1717890670171,-463.81,0.00029863,4]
[328856090,1717890670184,-504.29901458,0.00029863,4]
[328856091,1717890670194,-505.64600637,0.00029863,14]
[328856092,1717890670204,-500.0,0.00029863,4]
[328856093,1717890670214,-500.0,0.00029863,4]
[328856094,1717890670223,-500.0,0.00029863,4]
[328856095,1717890670233,-500.0,0.00029863,4]
[328856096,1717890670243,-509.70558678,0.00029863,4]
[328856097,1717890670253,-500.0,0.00029863,2]
[328856098,1717890670262,-500.0,0.00029863,2]
[328856099,1717890670272,-500.0,0.00029863,4]
[328856100,1717890670282,-500.0,0.00029863,2]
[328856101,1717890670293,-198.32,0.00029863,4]
[328856102,1717890670303,-500.0,0.00029863,2]
[328856103,1717890670314,-500.0,0.00029863,2]
[328856104,1717890670323,-403.0511592,0.00029863,2]
[328856105,1717890670333,-500.0,0.00029863,4]
[328856106,1717890670343,-500.0,0.00029863,4]
[328856107,1717890670353,-500.0,0.00029863,4]
[328856108,1717890670362,-500.0,0.00029863,4]
[328856109,1717890670372,-500.0,0.00029863,4]
[328856110,1717890670382,-500.0,0.00029863,4]
[328856111,1717890670392,-425.23,0.00029863,4]
[328856112,1717890670402,-500.0,0.00029863,4]
[328856113,1717890670412,-538.86,0.00029863,4]
[328856114,1717890670422,-500.0,0.00029863,4]
[328856115,1717890670435,-500.0,0.00029863,4]
[328856116,1717890670445,-500.0,0.00029863,4]
[328856117,1717890670456,-500.0,0.00029863,4]
[328856118,1717890670466,-500.0,0.00029863,4]
[328856119,1717890670476,-178.24,0.00029863,4]
[328856120,1717890670486,-500.0,0.00029863,4]
[328856121,1717890670496,-500.0,0.00029863,4]
[328856122,1717890670506,-500.0,0.00029863,4]
[328856123,1717890670515,-610.63,0.00029863,4]
[328856124,1717890670525,-503.70353573,0.00029863,4]
[328856125,1717890670535,-500.0,0.00029863,4]
[328856126,1717890670548,-500.0,0.00029863,4]
[328856127,1717890670558,-500.0,0.00029863,4]
[328856128,1717890670567,-555.82,0.00029863,4]
[328856129,1717890670577,-150.73,0.00029863,4]
[328856130,1717890670587,-512.62,0.00029863,4]
[328856131,1717890670597,-500.0,0.00029863,4]
[328856132,1717890670607,-500.0,0.00029863,4]
[328856133,1717890670616,-500.0,0.00029863,4]
[328856134,1717890670628,-500.0,0.00029863,4]
[328856135,1717890670639,-644.62,0.00029863,4]
[328856136,1717890670649,-500.0,0.00029863,4]
[328856137,1717890670658,-503.928704,0.00029863,4]
[328856138,1717890670668,-500.0,0.00029863,4]
[328856139,1717890670680,-500.0,0.00029863,4]
[328856140,1717890670689,-618.27,0.00029863,4]
[328856141,1717890670699,-534.26851588,0.00029863,4]
[328856142,1717890670709,-500.0,0.00029863,4]
[328856143,1717890670719,-500.0,0.00029863,4]
[328856144,1717890670729,-500.0,0.00029863,4]
[328856145,1717890670738,-500.0,0.00029863,4]
[328856146,1717890670748,-223.71,0.00029863,4]
[328856147,1717890670758,-611.73,0.00029863,4]
[328856148,1717890670768,-500.0,0.00029863,4]
[328856149,1717890670777,-500.0,0.00029863,4]
[328856150,1717890670787,-500.0,0.00029863,4]
[328856151,1717890670797,-504.99375308,0.00029863,4]
[328856152,1717890670807,-501.809007,0.00029863,4]
[328856153,1717890670816,-500.0,0.00029863,4]
[328856154,1717890670826,-500.0,0.00029863,4]
[328856155,1717890670835,-500.0,0.00029863,4]
[328856156,1717890670845,-229.46,0.00029863,4]
[328856157,1717890670855,-500.0,0.00029863,4]
[328856158,1717890670865,-500.0,0.00029863,4]
[328856159,1717890670874,-500.0,0.00029863,4]
[328856160,1717890670884,-544.07,0.00029863,4]
[328856161,1717890670895,-503.50193013,0.00029863,4]
[328856162,1717890670905,-524.11045853,0.00029863,4]
[328856163,1717890670915,-505.39817099,0.00029863,4]
[328856164,1717890670926,-500.0,0.00029863,4]
[328856165,1717890670936,-512.47713674,0.00029863,4]
[328856166,1717890670947,-500.0,0.00029863,4]
[328856167,1717890670957,-504.19188231,0.00029863,4]
[328856168,1717890670967,-503.10757509,0.00029863,4]
[328856169,1717890670978,-500.0,0.00029863,4]
[328856170,1717890670988,-500.0,0.00029863,4]
[328856171,1717890670998,-500.0,0.00029863,4]
[328856172,1717890671008,-500.0,0.00029863,4]
[328856173,1717890671018,-500.0,0.00029863,4]
[328856174,1717890671028,-489.08,0.00029863,4]
[328856175,1717890671039,-500.0,0.00029863,4]
[328856176,1717890671049,-501.26766867,0.00029863,4]
[328856177,1717890671058,-500.0,0.00029863,4]
[328856178,1717890671068,-500.0,0.00029863,4]
[328856179,1717890671078,-500.0,0.00029863,4]
[328856180,1717890671088,-500.0,0.00029863,4]
[328856181,1717890671098,-500.0,0.00029863,4]
[328856182,1717890671108,-500.0,0.00029863,4]
[328856183,1717890671118,-320.26,0.00029863,4]
[328856184,1717890671128,-507.23359711,0.00029863,4]
[328856185,1717890671138,-506.20887669,0.00029863,4]
[328856186,1717890671148,-502.10206727,0.00029863,4]
[328856187,1717890671157,-500.0,0.00029863,4]
[328856188,1717890671167,-165.24533193,0.00029863,4]
[328856189,1717890671177,-500.0,0.00029863,4]
[328856190,1717890671187,-1011.57280007,0.00029863,4]
[328856191,1717890671197,-513.79198755,0.00029863,4]
[328856192,1717890671207,-500.0,0.00029863,4]
[328856193,1717890671216,-503.24301662,0.00029863,4]
[328856194,1717890671226,-500.0,0.00029863,4]
[328856195,1717890671236,-500.0,0.00029863,4]
[328856196,1717890671245,-500.0,0.00029863,4]
[328856197,1717890671255,-500.0,0.00029863,4]
[328856198,1717890671264,-500.0,0.00029863,4]
[328856199,1717890671274,-500.0,0.00029863,4]
[328856200,1717890671284,-500.0,0.00029863,4]
[328856201,1717890671294,-500.0,0.00029863,4]
[328856202,1717890671303,-500.0,0.00029863,4]
[328856203,1717890671313,-500.0,0.00029863,4]
[328856204,1717890671323,-500.0,0.00029863,4]
[328856205,1717890671333,-500.0,0.00029863,4]
[328856206,1717890671342,-500.0,0.00029863,4]
[328856207,1717890671352,-500.0,0.00029863,4]
[328856208,1717890671362,-183.79,0.00029863,4]
[328856209,1717890671372,-457.57,0.00029863,4]
[328856210,1717890671382,-500.0,0.00029863,4]
[328856211,1717890671392,-341.88959129,0.00029863,4]
[328856212,1717890671403,-500.0,0.00029863,4]
[328856213,1717890671415,-511.95485872,0.00029863,4]
[328856214,1717890671426,-500.0,0.00029863,4]
[328856215,1717890671436,-500.0,0.00029863,4]
[328856216,1717890671447,-500.0,0.00029863,4]
[328856217,1717890671459,-509.72563188,0.00029863,4]
[328856218,1717890671470,-500.0,0.00029863,4]
[328856219,1717890671482,-500.0,0.00029863,4]
[328856220,1717890671493,-500.0,0.00029863,4]
[328856221,1717890671503,-500.0,0.00029863,4]
[328856222,1717890671513,-500.0,0.00029863,4]
[328856223,1717890671524,-389.49,0.00029863,4]
[328856224,1717890671535,-500.0,0.00029863,4]
[328856225,1717890671547,-500.0,0.00029863,4]
[328856226,1717890671559,-500.0,0.00029863,4]
[328856227,1717890671570,-500.0,0.00029863,4]
[328856228,1717890671580,-507.13751587,0.00029863,4]
[328856229,1717890671592,-500.0,0.00029863,4]
[328856230,1717890671601,-500.0,0.00029863,4]
[328856231,1717890671612,-517.90295368,0.00029863,4]
[328856232,1717890671625,-504.91274143,0.00029863,4]
[328856233,1717890671636,-568.43516922,0.00029863,4]
[328856234,1717890671646,-511.25403705,0.00029863,4]
[328856235,1717890671657,-500.0,0.00029863,4]
[328856236,1717890671667,-500.0,0.00029863,4]
[328856237,1717890671679,-260.31,0.00029863,4]
[328856238,1717890671689,-500.0,0.00029863,4]
[328856239,1717890671698,-500.0,0.00029863,4]
[328856240,1717890671709,-500.0,0.00029863,4]
[328856241,1717890671719,-163.62,0.00029863,4]
[328856242,1717890671729,-539.08,0.00029863,4]
[328856243,1717890671738,-180.87,0.00029863,4]
[328856244,1717890671749,-500.0,0.00029863,4]
[328856245,1717890671760,-500.80764758,0.00029863,4]
[328856246,1717890671770,-500.0,0.00029863,4]
[328856247,1717890671780,-500.0,0.00029863,4]
[328856248,1717890671790,-560.45,0.00029863,4]
[328856249,1717890671800,-617.0,0.00029863,4]
[328856250,1717890671900,-534.31702145,0.00029863,4]
[328856251,1717890671910,-504.32225371,0.00029863,4]
[328856252,1717890671920,-500.0,0.00029863,4]
[328856253,1717890671931,-507.36202041,0.00029863,4]
[328856254,1717890671941,-508.69043781,0.00029863,4]
[328856255,1717890671951,-500.0,0.00029863,4]
[328856256,1717890671961,-500.0,0.00029863,4]
[328856257,1717890671971,-504.89107071,0.00029863,4]
[328856258,1717890671983,-500.0,0.00029863,4]
[328856259,1717890671994,-500.0,0.00029863,4]
[328856260,1717890672004,-500.0,0.00029863,4]
[328856261,1717890672013,-500.0,0.00029863,4]
[328856262,1717890672023,-482.28,0.00029863,4]
[328856263,1717890672033,-500.0,0.00029863,4]
[328856264,1717890672043,-526.10516913,0.00029863,4]
[328856265,1717890672053,-500.0,0.00029863,4]
[328856266,1717890672063,-614.59,0.00029863,4]
[328856267,1717890672072,-505.60573973,0.00029863,4]
[328856268,1717890672082,-511.03606313,0.00029863,4]
[328856269,1717890672092,-500.0,0.00029863,4]
[328856270,1717890672101,-500.0,0.00029863,4]
[328856271,1717890672112,-573.33293331,0.00029863,4]
[328856272,1717890672122,-500.0,0.00029863,4]
[328856273,1717890672133,-508.40579617,0.00029863,4]
[328856274,1717890672144,-609.55,0.00029863,4]
[328856275,1717890672155,-508.66480909,0.00029863,4]
[328856276,1717890672167,-500.0,0.00029863,4]
[328856277,1717890672177,-500.0,0.00029863,4]
[328856278,1717890672187,-500.0,0.00029863,4]
[328856279,1717890672197,-500.0,0.00029863,4]
[328856280,1717890672208,-507.35950748,0.00029863,4]
[328856281,1717890672220,-559.73,0.00029863,4]
[328856282,1717890672230,-156.73549978,0.00029863,4]
[328856283,1717890672241,-508.07373298,0.00029863,4]
[328856284,1717890672251,-506.66575715,0.00029863,4]
[328856285,1717890672261,-500.0,0.00029863,4]
[328856286,1717890672272,-500.0,0.00029863,4]
[328856287,1717890672283,-500.0,0.00029863,4]
[328856288,1717890672293,-505.72655232,0.00029863,4]
[328856289,1717890672303,-500.0,0.00029863,4]
[328856290,1717890672314,-500.0,0.00029863,4]
[328856291,1717890672327,-202.97,0.00029863,4]
[328856292,1717890672338,-598.48,0.00029863,4]
[328856293,1717890672349,-500.0,0.00029863,4]
[328856294,1717890672359,-500.0,0.00029863,4]
[328856295,1717890672370,-510.70024348,0.00029863,4]
[328856296,1717890672380,-501.54662597,0.00029863,4]
[328856297,1717890672390,-503.42165096,0.00029863,4]
[328856298,1717890672400,-500.0,0.00029863,4]
[328856299,1717890672410,-500.0,0.00029863,4]
[328856300,1717890672420,-500.0,0.00029863,4]
[328856301,1717890672431,-358.69,0.00029863,4]
[328856302,1717890672441,-508.98069274,0.00029863,4]
[328856303,1717890672451,-500.0,0.00029863,4]
[328856304,1717890672461,-505.10057887,0.00029863,4]
[328856305,1717890672471,-500.0,0.00029863,4]
[328856306,1717890672480,-502.98420043,0.00029863,4]
[328856307,1717890672490,-500.0,0.00029863,4]
[328856308,1717890672500,-500.0,0.00029863,4]
[328856309,1717890672510,-502.61908707,0.00029863,4]
[328856310,1717890672520,-500.0,0.00029863,4]
[328856311,1717890672530,-500.0,0.00029863,4]
[328856312,1717890672540,-500.0,0.00029863,4]
[328856313,1717890672554,-500.0,0.00029863,4]
[328856314,1717890672564,-527.48738105,0.00029863,4]
[328856315,1717890672574,-512.10310348,0.00029863,4]
[328856316,1717890672587,-542.2557396,0.00029863,4]
[328856317,1717890672597,-354.59,0.00029863,4]
[328856318,1717890672607,-500.0,0.00029863,4]
[328856319,1717890672617,-500.0,0.00029863,4]
[328856320,1717890672628,-500.0,0.00029863,4]
[328856321,1717890672638,-277.78,0.00029863,4]
[328856322,1717890672648,-771.45619394,0.00029863,4]
[328856323,1717890672658,-500.0,0.00029863,4]
[328856324,1717890672668,-500.0,0.00029863,4]
[328856325,1717890672677,-500.0,0.00029863,4]
[328856326,1717890672687,-503.74082473,0.00029863,4]
[328856327,1717890672696,-507.17792164,0.00029863,4]
[328856328,1717890672706,-638.06,0.00029863,4]
[328856329,1717890672716,-500.0,0.00029863,4]
[328856330,1717890672726,-500.0,0.00029863,4]
[328856331,1717890672735,-647.60801338,0.00029863,4]
[328856332,1717890672745,-506.73863763,0.00029863,4]
[328856333,1717890672754,-501.53400161,0.00029863,4]
[328856334,1717890672764,-500.0,0.00029863,4]
[328856335,1717890672774,-510.08337535,0.00029863,4]
[328856336,1717890672784,-500.0,0.00029863,4]
[328856337,1717890672794,-508.89758054,0.00029863,4]
[328856338,1717890672803,-500.0,0.00029863,4]
[328856339,1717890672812,-500.0,0.00029863,4]
[328856340,1717890672822,-500.0,0.00029863,4]
[328856341,1717890672832,-504.28689534,0.00029863,4]
[328856342,1717890672842,-248.89488543,0.00029863,4]
[328856343,1717890672852,-500.0,0.00029863,4]
[328856344,1717890672861,-507.2399419,0.00029863,4]
[328856345,1717890672871,-500.0,0.00029863,4]
[328856346,1717890672882,-500.0,0.00029863,4]
[328856347,1717890672893,-500.0,0.00029863,4]
[328856348,1717890672904,-513.26386857,0.00029863,4]
[328856349,1717890672914,-613.24,0.00029863,4]
[328856350,1717890672924,-500.0,0.00029863,4]
[328856351,1717890672936,-500.0,0.00029863,4]
[328856352,1717890672946,-507.21303589,0.00029863,4]
[328856353,1717890672956,-500.0,0.00029863,4]
[328856354,1717890672965,-382.32349902,0.00029863,4]
[328856355,1717890672975,-512.70063028,0.00029863,4]
[328856356,1717890672985,-500.0,0.00029863,4]
[328856357,1717890672994,-512.94527154,0.00029863,4]
[328856358,1717890673004,-505.73573769,0.00029863,4]
[328856359,1717890673014,-500.0,0.00029863,4]
[328856360,1717890673023,-500.0,0.00029863,4]
[328856361,1717890673033,-500.0,0.00029863,4]
[328856362,1717890673043,-407.42,0.00029863,4]
[328856363,1717890673053,-565.21715989,0.00029863,4]
[328856364,1717890673063,-500.0,0.00029863,4]
[328856365,1717890673073,-500.0,0.00029863,4]
[328856366,1717890673083,-500.0,0.00029863,4]
[328856367,1717890673093,-500.0,0.00029863,4]
[328856368,1717890673103,-500.0,0.00029863,4]
[328856369,1717890673113,-500.0,0.00029863,4]
[328856370,1717890673123,-606.02,0.00029863,4]
[328856371,1717890673133,-353.58,0.00029863,4]
[328856372,1717890673143,-500.0,0.00029863,4]
[328856373,1717890673153,-500.0,0.00029863,4]
[328856374,1717890673163,-500.0,0.00029863,4]
[328856375,1717890673173,-500.0,0.00029863,4]
[328856376,1717890673184,-500.0,0.00029863,4]
[328856377,1717890673194,-500.0,0.00029863,4]
[328856378,1717890673205,-500.0,0.00029863,4]
[328856379,1717890673215,-500.0,0.00029863,4]
[328856380,1717890673225,-500.0,0.00029863,4]
[328856381,1717890673235,-500.0,0.00029863,4]
[328856382,1717890673246,-495.49900046,0.00029863,4]
[328856383,1717890673256,-500.0,0.00029863,4]
[328856384,1717890673267,-500.0,0.00029863,4]
[328856385,1717890673277,-402.13,0.00029863,4]
[328856386,1717890673287,-511.43277558,0.00029863,4]
[328856387,1717890673298,-500.0,0.00029863,4]
[328856388,1717890673309,-525.60065972,0.00029863,4]
[328856389,1717890673321,-500.0,0.00029863,4]
[328856390,1717890673332,-500.0,0.00029863,4]
[328856391,1717890673343,-487.21,0.00029863,4]
[328856392,1717890673355,-506.60217462,0.00029863,4]
[328856393,1717890673365,-541.85,0.00029863,4]
[328856394,1717890673376,-505.20518137,0.00029863,4]
[328856395,1717890673386,-515.82515124,0.00029863,4]
[328856396,1717890673397,-500.0,0.00029863,4]
[328856397,1717890673408,-511.0719461,0.00029863,4]
[328856398,1717890673418,-500.0,0.00029863,4]